Cogmind - Beta 13 *** ADVENTURER MODE // 2024.04.21 @ 00:14:16 Player: Knightshade Result: Destroyed by BK-NXV(R) with Subdweller Machine Gun Performance ------------- Evolutions (0) 0 Regions Visited (2) 400 Robots Destroyed (29) 145 Value Destroyed (577) 577 Prototype IDs (1) 20 Alien Tech Used (0) 0 Bonus (128) 128 TOTAL SCORE: 1270 Bonus ------- Follower Combat Kills 128 Cogmind --------- Core Integrity 0/250 Matter 300/300 Energy 249/250 System Corruption 0% Temperature Cool (0) Movement Rolling (125) Ox3 Location -10/Subcaves Parts ------- > --- POWER (1) -------- Ion Engine > --- PROPULSION (2) --- Wheel > --- UTILITY (2) ------ Large Storage Unit V3-11A's Pendant > --- WEAPON (2) ------- Subdweller Laser Heavy Battle Rifle > --- INVENTORY (15) --- Makeshift Power Source Cargo Legs Wheel Wheel Medium Storage Unit Small Matter Pod (50) Medium Matter Pod (100) Medium Matter Pod (100) Medium Matter Pod (100) Medium Matter Pod (100) Structural Scanner Grenade Launcher Datajack Multitool Peak State ------------ > --- POWER ------------ Ion Engine > --- PROPULSION ------- Wheel Compact Wheel > --- UTILITY ---------- Large Storage Unit V3-11A's Pendant > --- WEAPON ----------- Subdweller Laser Heavy Battle Rifle > --- INVENTORY -------- Makeshift Power Source Cargo Legs Wheel Wheel Medium Storage Unit Small Matter Pod Medium Matter Pod Medium Matter Pod Medium Matter Pod Medium Matter Pod Structural Scanner Grenade Launcher Datajack Multitool [Rating: 16] Favorites ----------- Power Ion Engine Engine Ion Engine Propulsion Compact Wheel Wheel Compact Wheel Utility Large Storage Unit Device V3-11A's Pendant Storage Large Storage Unit Weapon Small Laser Energy Gun Small Laser Ballistic Gun Heavy Battle Rifle Launcher Grenade Launcher Build | -11 -10 -10 ------- Run | Yrd Mat Sub Slots Evolved . | . . . Power . | . . . Propulsion . | . . . Utility . | . . . Weapon . | . . . Parts Attached 27 | 6 14 7 Power 4 | 1 2 1 Engine 4 | 1 2 1 Core . | . . . Reactor . | . . . Propulsion 8 | 2 6 . Treads . | . . . Leg . | . . . Wheel 8 | 2 6 . Hover . | . . . Flight . | . . . Utility 5 | 1 2 2 Device 3 | . 1 2 Storage 2 | 1 1 . Processor . | . . . Hackware . | . . . Protection . | . . . Artifact . | . . . Weapon 10 | 2 4 4 Energy Gun 8 | 2 3 3 Energy Cannon . | . . . Ballistic Gun 1 | . . 1 Ballistic Cannon . | . . . Launcher 1 | . 1 . Special Weapon . | . . . Impact Weapon . | . . . Slashing Weapon . | . . . Piercing Weapon . | . . . Special Melee Weapon . | . . . Unidentified Prototypes 1 | . . 1 Parts Lost 5 | . 1 4 Power 1 | . . 1 Propulsion 2 | . 1 1 Utility . | . . . Weapon 2 | . . 2 Highest Loss Streak 1 | . 1 1 To Critical Strikes . | . . . Average Slot Usage (%) 90 | . 86 94 Engine 13 | . 13 14 Wheel 23 | . 23 24 Device 10 | . 6 13 Storage 14 | . 14 14 Energy Gun 20 | . 20 19 Ballistic Gun 3 | . . 7 Launcher 3 | . 7 . Naked Turns . | . . . Heaviest Build 34 | 10 30 34 Greatest Support 32 | 20 32 26 Greatest Overweight (x) 3 | . 1 3 Average Overweight (x) 1 | . . 1 Largest Inventory Capacity 15 | 8 15 15 Average Capacity 14 | 6 13 15 Most Carried 15 | 2 14 15 Average Carried 12 | . 10 14 Final Capacity 15 | 8 15 15 Final Carried 15 | . 12 15 Class Distribution -------------------- 94% | Mutant 5% | Scavenger-Mutant Dominant Class ---------------- Mutant | -10/Materials Mutant | -10/Subcaves Resources | -11 -10 -10 ----------- Run | Yrd Mat Sub Matter Collected 907 | 195 579 133 Remotely . | . . . Salvage Created 827 | . 685 142 Parts 64 | . 56 8 Haulers Intercepted 2 | . 2 . Recyclers Shooed . | . . . Parts Field Recycled . | . . . Retrieved Matter . | . . . Parts Self-Destructed 13 | . . 13 Prevented . | . . . Kills | -11 -10 -10 ------- Run | Yrd Mat Sub Combat Hostiles Destroyed 23 | . 19 4 Guns 19 | . 15 4 AOE 4 | . 4 . Classes Destroyed 8 | . 6 2 Builder 1 | . 1 . Hauler 2 | . 2 . Recycler 1 | . 1 . Watcher 2 | . 2 . Swarmer 11 | . 9 2 Grunt 10 | . 10 . Artisan 1 | . . 1 Subdweller 2 | . . 2 Best Kill Streak 7 | . 7 2 Combat Bots Only 7 | . 7 2 Max Kills in Single Turn 2 | . 2 1 Gunslinging 1 | . 1 . Exploded 2 | . 2 . Melee . | . . . Uniques/NPCs Destroyed . | . . . Combat | -11 -10 -10 -------- Run | Yrd Mat Sub Hostile Shots Fired 89 | . 53 36 Missed 27 | . 15 12 Damage Taken 697 | . 311 386 Core 259 | . 86 173 Absorbed by Shields . | . . . Ignored by Resistances 176 | . 101 75 Core Remaining (%) 100 | 100 . . Volleys Fired 84 | . 58 26 Largest 2 | . 2 2 Hottest 93 | . 80 93 Shots Fired 151 | . 104 47 Gun 146 | . 99 47 Cannon . | . . . Launcher 5 | . 5 . Special . | . . . Kinetic 11 | . . 11 Thermal 135 | . 99 36 Explosive 5 | . 5 . Electromagnetic . | . . . Robot Hit Streak 23 | . 23 8 Robot Miss Streak 3 | . 2 3 Penetration Max . | . . . Secondary Targets 4 | . 3 1 Max Gunslinging Chain 1 | . 1 1 Shots Hit Robots 93 | . 78 15 Core Hits 47 | . 40 7 Critical Kills . | . . . Critical Parts Destroyed . | . . . Critical Strikes . | . . . Melee Attacks . | . . . Impact . | . . . Slashing . | . . . Piercing . | . . . Sneak Attacks . | . . . Combat Hostiles . | . . . Follow-up Attacks . | . . . Damage Inflicted 1369 | . 1150 219 Guns 1039 | . 820 219 Cannons . | . . . Explosions 330 | . 330 . Melee . | . . . Ramming . | . . . Kinetic 85 | . . 85 Thermal 954 | . 820 134 Explosive 330 | . 330 . Electromagnetic . | . . . Impact . | . . . Slashing . | . . . Piercing . | . . . Highest Corruption . | . . . Average Corruption . | . . . Corruption Purged . | . . . Corruption Blocked . | . . . Overload Shots . | . . . Overflow Damage . | . . . Projectiles . | . . . Explosions . | . . . Melee . | . . . Knockbacks . | . . . Impact . | . . . Kinetic . | . . . Secondary . | . . . Self-Inflicted Damage 12 | . 12 . Shots 1 | . 1 . Rammed . | . . . Targets Rammed . | . . . Kicked . | . . . Crushed . | . . . Highest Temperature 126 | . 126 18 Average Temperature 38 | . 39 12 Received Heat Transfer 264 | . 132 132 Siege Activations . | . . . Robots Corrupted . | . . . Combat Hostiles . | . . . Parts Fried . | . . . Impact Corruptions . | . . . Robots Melted . | . . . Combat Hostiles . | . . . Parts Melted 3 | . 2 1 Heat Transferred 2075 | . 1875 200 Parts Sabotaged . | . . . Parts Stolen . | . . . Parts Stripped . | . . . Power Chain Reactions . | . . . Alert | -11 -10 -10 ------- Run | Yrd Mat Sub Peak Influence 368 | . 368 . Initial . | . . . Average 156 | . 160 . Maximum Alert Level 1 | . 1 . Low Security (%) 65 | 100 64 . Level 1 34 | . 35 . Level 2 . | . . . Level 3 . | . . . Level 4 . | . . . Level 5 . | . . . High Security . | . . . Max Security . | . . . Squads Dispatched 5 | . 5 . Investigation 5 | . 5 . Extermination . | . . . Reinforcement . | . . . Assault . | . . . Garrison . | . . . Intercept . | . . . Searches Triggered . | . . . Construction Impeded . | . . . Haulers Reinforced . | . . . Active Scanning Responses . | . . . Cargo Convoy Interrupts . | . . . Stealth | -11 -10 -10 --------- Run | Yrd Mat Sub Distress Signals 1 | . 1 . Communications Jammed . | . . . Distress Signals . | . . . Times Spotted 75 | . 30 45 Peak Tracking Total 6 | . 6 4 Tactical Retreats 2 | . . 2 Traps | -11 -10 -10 ------- Run | Yrd Mat Sub Traps Triggered 12 | . 7 5 Indirectly . | . . . Trap Hack Attempts . | . . . Triggered . | . . . Disarmed . | . . . Reprogrammed . | . . . Reused . | . . . Traps Extracted . | . . . Installed . | . . . Triggered . | . . . Machines | -11 -10 -10 ---------- Run | Yrd Mat Sub Machines Disabled 2 | . . 2 Max in Single Turn . | . . . Machines Repaired . | . . . Machines Dismantled . | . . . Machines Sabotaged . | . . . Overloaded Fab Kills . | . . . Hacking | -11 -10 -10 --------- Run | Yrd Mat Sub Machines Accessed 10 | . 9 1 Terminals 7 | . 7 . Fabricators . | . . . Repair Stations . | . . . Recycling Units 2 | . 2 . Scanalyzers . | . . . Garrison Access . | . . . Total Hacks 32 | . 31 1 Successful 22 | . 21 1 Failed 10 | . 10 . Catastrophic . | . . . Database Lockouts . | . . . Manual 19 | . 19 . Terminals 21 | . 21 . Fabricators . | . . . Repair Stations . | . . . Recycling Units 10 | . 10 . Scanalyzers . | . . . Garrison Access . | . . . Terminal Hacks 7 | . 6 1 Record 1 | . . 1 Terminal Index 1 | . 1 . Alert Level 1 | . 1 . Locate Traps 1 | . 1 . Registered Components 1 | . 1 . Zone Layout 2 | . 2 . Fabricator Hacks . | . . . Repair Station Hacks . | . . . Recycling Unit Hacks 6 | . 6 . Process 1 | . 1 . Report Inventory 3 | . 3 . Retrieve Matter 1 | . 1 . Retrieve Components 1 | . 1 . Scanalyzer . | . . . Garrison Access Hacks . | . . . Unauthorized Hacks 9 | . 9 . Terminals 6 | . 6 . Botnet 6 | . 6 . Fabricators . | . . . Repair Stations . | . . . Recycling Units 3 | . 3 . Reject 1 | . 1 . Tunnel 2 | . 2 . Scanalyzers . | . . . Garrison Access . | . . . Data Cores Recovered . | . . . Used . | . . . Hacking Detections 8 | . 8 . Full Trace Events . | . . . Feedback Events . | . . . Feedback Blocked . | . . . Robot Schematics Acquired . | . . . Robots Built . | . . . Authchips . | . . . Time . | . . . Total Robot Build Rating . | . . . Part Schematics Acquired . | . . . Parts Built . | . . . Authchips . | . . . Time . | . . . Total Part Build Rating . | . . . Parts Repaired . | . . . Time . | . . . Parts Recycled . | . . . Recycled Matter 232 | . 232 . Retrieved Matter 299 | . 299 . Retrieved Components 9 | . 9 . Parts Scanalyzed . | . . . Part Schematics Acquired . | . . . Parts Damaged . | . . . Bothacking | -11 -10 -10 ------------ Run | Yrd Mat Sub Used RIF Installer . | . . . Robots Hacked . | . . . Non-combat . | . . . Combat . | . . . Robot Hacks Applied . | . . . Relay Couplers Released . | . . . Fabnet Peak Effective % . | . . . Robots Rewired . | . . . Allies Hacked . | . . . Hacks Repelled . | . . . Allies | -11 -10 -10 -------- Run | Yrd Mat Sub Total Allies 6 | . . 6 Largest Group 4 | . . 4 Highest-Rated Group 76 | . . 76 Highest-Rated Ally 19 | . . 19 Total Orders . | . . . Ally Attacks 43 | . . 43 Total Damage 702 | . . 702 Kills 8 | . . 8 Allies Corrupted . | . . . Allies Melted . | . . . Intel | -11 -10 -10 ------- Run | Yrd Mat Sub Robot Analysis Total . | . . . Derelict Logs Recovered 2 | . . 2 Drone Launches . | . . . Drone Recoveries . | . . . Exploration | -11 -10 -10 ------------- Run | Yrd Mat Sub Turns Passed 3220 | 35 1533 1652 Spaces Moved 2478 | 31 1120 1327 Core 7 | 6 1 . Treads . | . . . Legs . | . . . Wheels 2471 | 25 1119 1327 Hover . | . . . Flight . | . . . Fastest Speed 50 | 50 80 90 Average Speed 107 | 74 105 110 Slowest Speed 125 | 80 115 125 Overloaded Moves . | . . . Propulsion Burnouts . | . . . Robots Hopped . | . . . Cave-ins Triggered . | . . . Exploration Rate (%) 53 | 4 99 56 Regions Visited 2 Branch Regions 1 Pre-discovered Areas 3 | . 2 1 Known Exits Taken . | . . . Unknown Exits Taken 2 | 1 1 . Scrap Searched 4 | . . 4 Spaces Dug . | . . . Terrain Destroyed 35 | . 35 . Melee . | . . . Projectile . | . . . AOE 35 | . 35 . Terrain Rammed . | . . . Walls Destroyed . | . . . Machines Disabled . | . . . Actions | -11 -10 -10 --------- Run | Yrd Mat Sub Total 2886 | 42 1373 1471 Wait 254 | . 155 99 Move 2476 | 30 1119 1327 Hop . | . . . Pick Up 38 | 6 24 8 Fast Attach . | . . . Attach 20 | 6 9 5 Detach 1 | . . 1 Swap 7 | . 5 2 Drop 6 | . 3 3 Fire 84 | . 58 26 Melee . | . . . Ram . | . . . Kick . | . . . Crush . | . . . Escape Stasis . | . . . Rewire . | . . . Trap . | . . . Miscellaneous . | . . . Route ------- -11/Scrapyard -10/Materials (discovered 6 exits: [*Mat x3] / [*Min x2] / *Sub) -10/Subcaves (discovered 2 exits: [*Mat] / [*Rec]) History --------- Turn | Location | Event 3 | -11/Scrapyard | Discovered new exit (range 15) 36 | -11/Scrapyard | Entered Materials 69 | -10/Materials | Discovered new exit (range 18) 308 | -10/Materials | Build established: Mutant 323 | -10/Materials | Destroyed 7 combat bots 414 | -10/Materials | Discovered new exit (range 7) 632 | -10/Materials | Discovered new exit (range 16) 823 | -10/Materials | Discovered new exit (range 15) 1396 | -10/Materials | Discovered new exit (range 12) 1545 | -10/Materials | Discovered new exit (range 9) 1569 | -10/Materials | Entered Subcaves 1616 | -10/Subcaves | Core integrity fell below 50% 1711 | -10/Subcaves | Visited triangular shrine 1718 | -10/Subcaves | Found Prototype Device 1719 | -10/Subcaves | Identified V3-11A's Pendant 1724 | -10/Subcaves | Befriended Subdweller 1838 | -10/Subcaves | Discovered new exit (range 7) 1938 | -10/Subcaves | Shifting Twisted Machinery released Mak. Power Source 1940 | -10/Subcaves | Shifting Twisted Machinery released Scrap Shield 1990 | -10/Subcaves | Learned location of 1 exit from Materials 2342 | -10/Subcaves | Disturbed a concealed Subdweller 2344 | -10/Subcaves | Befriended Subdweller 2429 | -10/Subcaves | Befriended Subdweller 2429 | -10/Subcaves | Befriended Subdweller 2596 | -10/Subcaves | A Subdweller sparked back to life 2596 | -10/Subcaves | A Subdweller sparked back to life 2596 | -10/Subcaves | A Subdweller sparked back to life 2622 | -10/Subcaves | Found Prototype Leg 2633 | -10/Subcaves | Learned location of Zion (-7) 2633 | -10/Subcaves | Met a Zionite searching for "candidates" 2717 | -10/Subcaves | Befriended Subdweller 2766 | -10/Subcaves | Discovered new exit (range 10) 2776 | -10/Subcaves | Core integrity fell below 20% 2778 | -10/Subcaves | Visited Clippyterm 2824 | -10/Subcaves | Lost 4 allies 2838 | -10/Subcaves | Approached by friendly Subdweller 3221 | -10/Subcaves | Destroyed by BK-NXV(R) with Subdweller Machine Gun Last Messages --------------- 02769_ S-10 Pest destroyed. 02770_ A thin wall crumbles away, revealing a door. 02775_ S-10 Pest destroyed. 02775_ Com. Wheel destroyed. 02778_ The door opens automatically. 02781_ Lgt. Assault Rifle fries itself beyond repair. 02781_ RX-59K(R) destroyed. 02782_ Connecting with Clippyterm... 02782_ Current location identified: Subcaves >>Record "Tab" It looks like you're biased against spaces, I think you need more help than I can offer. 02782_ D5-CG7(R) destroyed. 02785_ Lgt. Assault Rifle fries itself beyond repair. 02786_ NU-ZGR(R) affixes Scrap Shield Fragment to Scrap Shield. 02786_ NU-ZGR(R) destroyed. 02788_ Machine disabled. 02793_ QV-UCL(R) destroyed. 02867_ Acquired 15 matter. 03170_ Acquired 9 matter. Map ----- +----------------------------------------------------+ | ##???????????????????# # # """"" ###!## & | | ##???????????????????## ###### %%&& # | | ###??????????????????# ##????###%%!## | | ####?????????????????# ## ###### ##????????%=& | | ####????????????????# ####????####?????????&&! | | ###????????????????# ##??????????????????[ | | ##???????????????## #?????????????????? | | ###???????????????# ##????????????????? | | ###???????????????## ###???????????????" "" | | ###???????????????## ####?????????????<### | | ##??????????????#### ##????????????##?? | | ##??????????????# ####?? #????????? | | " ###??????????????# ## # # ??????????? | | ####??????????????# ## # ???????????? | | ####?????????????### # ### ## ?????????? | | ####??????????????# ###### # #??? ??????????? | | ###???????????????# #??# #???????????????? | | ##????????????????# #?# ###?????????????? | | ??????????????????# ### ##????????????? | | ??????????????????# R## #????????????? | | ??????????????????## % #### ##????????????? | | ???????????????????## #??## ##?????????????? | | ????????????????????## #??#"##??????????????? | | ???????????????????### #?## #???????????????? | | ???????????????????# #### ##??????????????? | | ???????????????????# @##?# ###????????????? | | ???????????????????# ##### &"##???????????? | | ???????????????????# # # # "! %"##??????????? | | ???????????????????### & & #??????????? | | ?????????????????????## *! ##?????????? | | ??????????????????????# # ## ! % ##????????? | | ??????????????????????# ##### % " ##???????? | | ??????????????????????# # ! ###?????? | | ????????????????????### #?????? | | ????????????????????# # # ##?????? | | ###???####??????????# ### ## #??????? | | # ##### ##????????## # ###? #??????? | | ## #????????# ###??? #??????? | | " #???????## #????? #??????? | | #?????### # ##????? # ###??????? | | ### #????## #### #????? ###????????? | | #?## #????# ##?? ##??????#??????????? | | ???# ##???# ##??## ##?????????????????? | | ???##### #??## #???# ??????????????????? | | ??????## #?## ##? ## ###???????????##????? | | ?????## ### ## ##??????###?### #????? | | ????## ### #?????## ?## #????? | | ????# ### #??#### ### #????? | | ????## ## ##?## # ## #????? | | ?????### ##??# #% ## #????? | +----------------------------------------------------+ Best States ------------- Heat Dissipation 25 Energy Generation 10 Energy Capacity 250 Matter Stores 300 Matter Capacity 300 Sight Range 16 Terrain Scan Density 10 Resistance: KI 20 Resistance: TH 20 Resistance: EX 20 Resistance: EM 20 Resistance: I 20 Resistance: S 20 Resistance: P 20 Evasion (%) 44 Offensive Hacking 10 Item Schematics ----------------- None Robot Schematics ------------------ None Fabricated ------------ Nothing Alien Tech Used ----------------- None Achievements -------------- None Challenges ------------ None Game ------ Seed PlasmaDynamicThruster Manual? 0 Play Time 00:31:34 Cumulative 67.1 hours Start 2024.04.20 @ 20:49:31 End 2024.04.21 @ 00:14:16 Sessions 1 Manual Loads 0 Difficulty Adventurer Special Mode None Game No. 44 Rogue 0 Adventurer 44 Explorer 0 Win Type - Total 0 Types 0/0/0/0/0/0/0/0/0 Lore% 32 Gallery% 41 Achievement% 33 Wizard Run 0 Options --------- Layout 0 ASCII 0 Keyboard 0 Movement Mouse Keybinds 0 Fullscreen 1 Font 18/SmallcapsGlow Map View 76x50 Zoom Use 0% Tactical HUD 1 Map Filters NONE Filters NONE Steam 1 RUN: 7d819317-30a5-4e0c-a221-81c4aa9bb39a